bitfinex-derivatives/quotes_SOLF0:USTF0_20250522
["timestamp","ask_amount","ask_price","bid_price","bid_amount"]
[1747919438443,7.556,177.58,177.55,5.67207876]
[1747919438746,0.03776166,177.59,177.55,0.04047876]
[1747919439246,5.66826166,177.59,177.55,0.04047876]
[1747919439448,0.03776166,177.59,177.55,0.04047876]
[1747919440446,0.03776166,177.59,177.56,5.6312]
[1747919440750,0.03776166,177.59,177.55,0.04047876]
[1747919441044,0.03776166,177.59,177.56,5.6312]
[1747919441244,0.03776166,177.59,177.55,0.04047876]
[1747919441643,0.03776166,177.59,177.57,5.6309]
[1747919441839,0.03776166,177.59,177.55,0.04047876]
[1747919442043,5.66836166,177.59,177.55,0.04047876]
[1747919443147,5.66836166,177.59,177.56,5.6312]
[1747919443953,0.03776166,177.59,177.57,5.6311]
[1747919444551,5.66836166,177.59,177.56,5.6313]
[1747919444751,0.03776166,177.59,177.55,0.04047876]
[1747919445050,0.03776166,177.59,177.57,5.6309]
[1747919445350,0.03776166,177.59,177.55,0.04047876]
[1747919446058,0.03776166,177.59,177.57,5.6309]
[1747919447356,0.03776166,177.59,177.58,5.6308]
[1747919450349,0.03776166,177.59,177.57,5.631]
[1747919450656,0.03776166,177.59,177.55,0.04047876]
[1747919450957,0.03776166,177.59,177.58,5.6308]
[1747919460170,6.166e-05,177.59,177.58,5.6308]
[1747919460773,5.18360951,177.65,177.64,5.6289]
[1747919461972,0.0402855,177.66,177.65,5.6285]
[1747919462169,0.0386842,177.67,177.63,0.03754052]
[1747919462773,0.0386842,177.67,177.64,5.6286]
[1747919462973,0.0386842,177.67,177.63,0.03754052]
[1747919463173,0.0386842,177.67,177.63,5.66664052]
[1747919463369,5.6289,177.65,177.63,0.03754052]
[1747919463564,0.0386842,177.67,177.63,0.03754052]
[1747919463968,5.6289,177.64,177.63,0.03754052]
[1747919464672,5.6287,177.65,177.63,0.03754052]
[1747919465575,5.6289,177.64,177.63,0.03754052]
[1747919466373,5.6287,177.65,177.63,0.03754052]
[1747919466777,5.6287,177.65,177.63,5.66664052]
[1747919467573,5.6283,177.66,177.63,5.66664052]
[1747919468274,0.0386842,177.67,177.63,5.66664052]
[1747919468773,126.7186842,177.67,177.55,4.71115391]
[1747919469075,11.17432753,177.66,177.55,4.71115391]
[1747919469275,5.6298,177.62,177.55,4.71115391]
[1747919469477,11.17432753,177.66,177.56,126.68]
[1747919469777,5.6296,177.62,177.59,0.03841623]
[1747919470081,0.04134278,177.63,177.59,0.03841623]
[1747919470269,5.63,177.61,177.59,0.03841623]
[1747919472984,5.6301,177.6,177.59,0.03841623]
[1747919475384,5.6299,177.61,177.59,0.03841623]
[1747919475784,6.1963,177.62,177.59,0.03841623]
[1747919476085,11.8261,177.62,177.59,0.03841623]
[1747919476574,2.0787,177.62,177.59,0.03841623]
[1747919476777,0.04134278,177.63,177.59,0.03841623]
[1747919477477,0.04134278,177.63,177.62,5.6295]
[1747919477784,0.04134278,177.63,177.62,132.3295]
[1747919478287,4.278e-05,177.63,177.62,132.3295]
[1747919479982,4.278e-05,177.63,177.62,5.6295]
[1747919480188,4.278e-05,177.63,177.62,126.7]
[1747919480988,4.278e-05,177.63,177.59,0.03841623]
[1747919481183,5.62934278,177.63,177.59,0.03841623]
[1747919481388,4.278e-05,177.63,177.59,0.03841623]
[1747919481689,4.278e-05,177.63,177.62,5.6295]
[1747919482189,4.278e-05,177.63,177.6,5.6299]
[1747919482489,4.278e-05,177.63,177.59,0.03841623]
[1747919482791,4.278e-05,177.63,177.61,5.6296]
[1747919482984,4.278e-05,177.63,177.59,0.03841623]
[1747919483387,4.278e-05,177.63,177.62,5.6295]
[1747919484588,5.6298,177.61,177.59,0.03841623]
[1747919485193,4.278e-05,177.63,177.6,5.6301]
[1747919485396,4.278e-05,177.63,177.59,0.03841623]
[1747919485694,4.278e-05,177.63,177.61,5.6298]
[1747919485994,4.278e-05,177.63,177.59,0.03841623]
[1747919486686,4.278e-05,177.63,177.62,5.6295]
[1747919491601,4.278e-05,177.63,177.61,5.6297]
[1747919491793,4.278e-05,177.63,177.62,126.68]
[1747919492288,4.278e-05,177.63,177.62,132.3095]
[1747919494699,5.18360951,177.68,177.67,5.6279]
[1747919494896,5.18360951,177.68,177.61,124.96]
[1747919495196,5.6285,177.66,177.61,124.96]
[1747919495401,5.8019,177.67,177.61,124.96]
[1747919495598,0.03656684,177.66,177.65,5.6283]
[1747919497301,0.03656684,177.66,177.64,5.6288]
[1747919498502,0.03656684,177.66,177.65,5.6285]
[1747919499001,0.03656684,177.66,177.62,0.03656066]
[1747919499202,0.03656684,177.66,177.64,5.6286]
[1747919499711,0.03656684,177.66,177.62,5.66586066]
[1747919500004,0.03656684,177.66,177.62,0.03656066]
[1747919500402,5.66486684,177.66,177.63,5.6292]
[1747919500605,0.03656684,177.66,177.62,0.03656066]
[1747919501304,0.03656684,177.66,177.64,5.6288]
[1747919502006,0.03656684,177.66,177.63,5.6291]
[1747919502702,5.66496684,177.66,177.63,5.6291]
[1747919502905,0.03656684,177.66,177.64,5.6287]
[1747919503906,0.03656684,177.66,177.63,5.6291]
[1747919504506,0.03656684,177.66,177.64,5.6288]
[1747919505405,5.66476684,177.66,177.63,5.6291]
[1747919505597,0.03656684,177.66,177.63,5.6291]
[1747919506001,5.66496684,177.66,177.62,0.03656066]
[1747919507007,5.66496684,177.66,177.63,5.629]
[1747919508010,5.66496684,177.66,177.64,5.6288]
[1747919508011,0.03656684,177.66,177.64,5.6288]
[1747919508613,0.03656684,177.66,177.63,5.6291]
[1747919508614,5.66486684,177.66,177.63,5.6291]
[1747919509809,0.03656684,177.66,177.64,5.6288]
[1747919510109,0.03656684,177.66,177.62,0.03656066]
[1747919510305,0.03656684,177.66,177.64,5.6287]
[1747919510810,0.03656684,177.66,177.62,0.03656066]
[1747919512015,0.03656684,177.66,177.62,5.66586066]
[1747919512311,0.03656684,177.66,177.62,0.03656066]
[1747919513716,0.03656684,177.66,177.65,5.6285]
[1747919520334,6.684e-05,177.66,177.65,5.6285]
[1747919520828,6.684e-05,177.66,177.65,112.5885]
[1747919524132,5.18360951,177.73,177.71,5.6264]
[1747919525231,5.66200466,177.74,177.71,5.6264]
[1747919526941,0.03620466,177.74,177.7,0.04140785]
[1747919527643,0.03620466,177.74,177.73,5.626]
[1747919528635,9.51e-06,177.76,177.75,5.6254]
[1747919528837,9.51e-06,177.83,177.75,124.86]
[1747919529537,0.04290685,177.81,177.77,0.04198412]
[1747919529842,0.04290685,177.81,177.78,5.6242]
[1747919530044,0.04290685,177.81,177.77,0.04198412]
[1747919531139,0.04290685,177.81,177.8,5.6238]
[1747919532043,0.04290685,177.81,177.79,5.624]
[1747919532343,0.04290685,177.81,177.77,0.04198412]
[1747919533545,0.04290685,177.81,177.78,5.6242]
[1747919533949,0.04290685,177.81,177.77,0.04198412]
[1747919535653,5.6244,177.78,177.77,0.04198412]
[1747919544554,1.9148,177.8,177.77,0.04198412]
[1747919544555,124.86290685,177.81,177.77,0.04198412]
[1747919545060,5.6243,177.79,177.77,0.04198412]
[1747919545261,124.86290685,177.81,177.77,0.04198412]
[1747919545657,5.6244,177.78,177.77,0.04198412]
[1747919546461,124.86290685,177.81,177.71,124.82]
[1747919546462,136.03723438,177.81,177.71,124.82]
[1747919546660,135.99432753,177.81,177.71,124.82]
[1747919547161,5.6262,177.73,177.71,124.82]
[1747919547461,0.03968896,177.74,177.7,0.04166715]
[1747919547658,0.03968896,177.74,177.7,0.04024833]
[1747919548461,0.03968896,177.74,177.73,5.626]
[1747919551856,8.896e-05,177.74,177.73,5.626]
[1747919552165,8.896e-05,177.74,177.73,112.526]
[1747919558365,8.896e-05,177.74,177.73,5.626]
[1747919566677,8.896e-05,177.74,177.72,124.8]
[1747919567381,8.896e-05,177.74,177.73,5.626]
[1747919568682,8.896e-05,177.74,177.72,124.8]
[1747919569483,8.896e-05,177.74,177.73,5.626]
[1747919570484,8.896e-05,177.74,177.72,130.4262]
[1747919570681,8.896e-05,177.74,177.7,0.04024833]
[1747919571084,5.6266,177.71,177.7,0.04024833]
[1747919573188,5.6264,177.72,177.7,0.04024833]
[1747919573888,5.6266,177.71,177.7,0.04024833]
[1747919576300,1.9161,177.73,177.61,4.71115391]
[1747919576495,3.9825,177.7,177.61,4.71115391]
[1747919576989,5.6277,177.68,177.61,4.71115391]
[1747919577190,3.9825,177.7,177.6,4.71115391]
[1747919577388,0.04258922,177.67,177.63,0.03582092]
[1747919578182,6.90607778,177.77,177.64,5.6286]
[1747919578385,6.90607778,177.77,177.65,11.13364778]
[1747919578591,6.90607778,177.77,177.66,231.6]
[1747919578790,2.0111,177.76,177.65,231.6]
[1747919578982,5.6259,177.74,177.65,231.6]
[1747919579395,0.03854786,177.71,177.7,5.6267]
[1747919579894,0.03854786,177.71,177.68,0.0410897]
[1747919580092,0.03854786,177.71,177.69,5.6273]
[1747919580389,0.03854786,177.71,177.68,0.0410897]
[1747919581096,0.03854786,177.71,177.69,5.627]
[1747919583499,0.03854786,177.71,177.69,5.6273]
[1747919584196,0.03854786,177.71,177.7,5.627]
[1747919585094,0.03854786,177.71,177.69,5.6272]
[1747919585897,0.03854786,177.71,177.7,5.627]
[1747919586305,0.03854786,177.71,177.68,0.0410897]
[1747919586988,0.03854786,177.71,177.7,5.627]
[1747919587601,0.03854786,177.71,177.68,0.0410897]
[1747919589197,0.03854786,177.71,177.69,5.6271]
[1747919589498,0.03854786,177.71,177.68,0.0410897]
[1747919589799,5.66544786,177.71,177.68,5.6685897]
[1747919591197,0.03854786,177.71,177.69,5.6273]
[1747919592102,5.66524786,177.71,177.68,5.6685897]
[1747919593705,5.627,177.7,177.68,0.0410897]
[1747919594003,0.03854786,177.71,177.68,0.0410897]
[1747919594797,5.6273,177.69,177.68,0.0410897]
[1747919597106,124.53854786,177.71,177.69,5.6273]
[1747919597304,0.03854786,177.71,177.68,0.0410897]
[1747919597602,0.03854786,177.71,177.7,5.627]
[1747919598000,5.21578355,177.74,177.69,124.5]
[1747919598193,5.21578355,177.74,177.69,137.57424778]
[1747919599101,0.04311452,177.73,177.69,137.57424778]
[1747919600408,1.452e-05,177.73,177.72,5.6263]
[1747919600608,5.21578355,177.74,177.69,137.57424778]
[1747919601208,131.69468355,177.83,177.69,137.57424778]
[1747919601710,0.0404747,177.78,177.77,5.6247]
[1747919602009,0.03642776,177.79,177.76,0.04129474]
[1747919602901,0.03642776,177.79,177.78,5.6244]
[1747919604917,0.03642776,177.79,177.76,0.04129474]
[1747919605507,0.03642776,177.79,177.76,5.66609474]
[1747919606110,0.03642776,177.79,177.77,5.6247]
[1747919606308,0.03642776,177.79,177.76,0.04129474]
[1747919606809,0.03642776,177.79,177.78,5.6244]
[1747919608112,0.03642776,177.79,177.77,5.6247]
[1747919608410,0.03642776,177.79,177.76,0.04129474]
[1747919609109,5.6246,177.78,177.76,0.04129474]
[1747919609306,0.03642776,177.79,177.76,0.04129474]
[1747919609809,16.79007554,177.79,177.69,4.71115391]
[1747919610002,11.13364778,177.75,177.61,124.44]
[1747919610206,124.44,177.74,177.6,136.95517332]
[1747919610708,0.03726862,177.72,177.69,0.04024554]
[1747919610910,5.6272,177.7,177.69,0.03595836]
[1747919611311,0.03726862,177.72,177.69,0.03595836]
[1747919612716,0.03726862,177.72,177.71,5.6266]
[1747919613717,0.03726862,177.72,177.7,5.6269]
[1747919614515,0.03726862,177.72,177.69,0.03595836]
[1747919615026,0.03726862,177.72,177.7,5.627]
[1747919615212,5.66366862,177.72,177.69,0.03595836]
[1747919616415,0.03726862,177.72,177.69,0.03595836]
[1747919618216,0.03726862,177.72,177.69,5.66315836]
[1747919618823,0.03726862,177.72,177.69,0.03595836]
[1747919619415,5.627,177.7,177.69,0.03595836]
[1747919620019,5.6267,177.71,177.69,0.03595836]
[1747919620721,5.66366862,177.72,177.69,0.03595836]
[1747919621319,0.03726862,177.72,177.7,5.6269]
[1747919621513,0.03726862,177.72,177.69,0.03595836]
[1747919622417,0.03726862,177.72,177.71,5.6266]
[1747919625324,0.03726862,177.72,177.7,5.6269]
[1747919626125,0.03726862,177.72,177.71,5.6266]
[1747919628624,5.21578355,177.81,177.71,106.92]
[1747919628816,5.21578355,177.81,177.71,112.7103]
[1747919629015,5.6239,177.8,177.71,112.7103]
[1747919629521,0.03910533,177.77,177.74,0.03658621]
[1747919630226,5.66390533,177.77,177.74,0.03658621]
[1747919630822,5.6252,177.76,177.74,0.03658621]
[1747919631025,0.03910533,177.77,177.74,0.03658621]
[1747919631522,5.6254,177.75,177.74,0.03658621]
[1747919632225,0.03910533,177.77,177.63,135.41364778]
[1747919632426,124.28,177.78,177.63,135.41364778]
[1747919632624,5.627,177.7,177.67,5.6279]
[1747919633119,5.66257533,177.7,177.67,5.66824672]
[1747919633418,0.03557533,177.7,177.68,5.6275]
[1747919633625,0.03557533,177.7,177.67,0.04034672]
[1747919634025,5.6275,177.69,177.67,0.04034672]
[1747919634615,5.66257533,177.7,177.67,5.66814672]
[1747919635022,0.03557533,177.7,177.67,0.04034672]
[1747919637220,5.66277533,177.7,177.67,5.66804672]
[1747919637423,0.03557533,177.7,177.67,0.04034672]
[1747919639122,5.6274,177.69,177.67,0.04034672]
[1747919639624,5.6274,177.69,177.67,5.66814672]
[1747919640422,5.6274,177.69,177.67,0.04034672]
[1747919640626,5.66267533,177.7,177.67,0.04034672]
[1747919640923,0.03557533,177.7,177.69,5.6273]
[1747919642432,0.03557533,177.7,177.68,5.6275]
[1747919643121,0.03557533,177.7,177.67,0.04034672]
[1747919643722,5.6276,177.68,177.67,0.04034672]
[1747919645518,5.6292,177.63,177.61,5.6295]
[1747919645733,124.32,177.68,177.61,5.6295]
[1747919646232,5.6291,177.64,177.61,5.6295]
[1747919646732,5.67061032,177.64,177.62,5.6294]
[1747919647232,0.04151032,177.64,177.62,5.6294]
[1747919647531,0.04151032,177.64,177.63,5.6292]
[1747919648419,0.04151032,177.64,177.62,5.6294]
[1747919648624,5.67041032,177.64,177.61,0.03584733]
[1747919648831,0.04151032,177.64,177.61,0.03584733]
[1747919650235,5.67041032,177.64,177.61,5.66544733]
[1747919650532,5.67041032,177.64,177.61,0.03584733]
[1747919650736,0.04151032,177.64,177.61,0.03584733]
[1747919651333,0.04151032,177.64,177.62,5.6294]
[1747919651834,0.04151032,177.64,177.61,0.03584733]
[1747919652035,5.67041032,177.64,177.61,5.66544733]
[1747919654237,5.6292,177.63,177.61,0.03584733]
[1747919654446,0.04151032,177.64,177.61,0.03584733]
[1747919655038,5.6294,177.63,177.61,0.03584733]
[1747919655242,0.04151032,177.64,177.61,5.66554733]
[1747919655741,5.67061032,177.64,177.61,5.66554733]
[1747919656241,5.6292,177.63,177.61,5.66554733]
[1747919656440,5.6292,177.63,177.61,0.03584733]
[1747919658340,5.6295,177.62,177.61,0.03584733]
[1747919660055,124.18,177.63,177.61,0.03584733]
[1747919660439,0.04151032,177.64,177.61,0.03584733]
[1747919660850,5.6295,177.62,177.61,0.03584733]
[1747919662950,0.04151032,177.64,177.52,4.0066]
[1747919663155,130.1532,177.65,177.52,4.0066]
[1747919663348,130.1532,177.65,177.51,124.2]
[1747919663645,11.13364778,177.62,177.51,124.2]
[1747919663852,0.04254536,177.58,177.55,0.03954445]
[1747919664152,124.22,177.57,177.55,0.03954445]
[1747919664452,5.6314,177.56,177.55,0.03954445]
[1747919664653,124.22,177.57,177.47,124.22]
[1747919664954,5.6322,177.54,177.5,5.6331]
[1747919665159,126.2468,177.57,177.47,124.22]
[1747919665665,0.04211132,177.54,177.5,0.03684574]
[1747919666160,5.633,177.51,177.5,0.03684574]
[1747919666363,129.853,177.51,177.5,0.03684574]
[1747919666955,0.04211132,177.54,177.5,0.03684574]
[1747919667249,0.04211132,177.54,177.51,5.6328]
[1747919667656,0.04211132,177.54,177.5,0.03684574]
[1747919667963,0.04211132,177.54,177.51,5.6329]
[1747919668364,0.04211132,177.54,177.5,0.03684574]
[1747919668560,0.04211132,177.54,177.52,5.6325]
[1747919669169,0.04211132,177.54,177.53,5.6323]
[1747919674063,0.04211132,177.54,177.52,5.6326]
[1747919674365,0.04211132,177.54,177.5,0.03684574]
[1747919674569,0.04211132,177.54,177.53,5.6323]
[1747919674865,0.04211132,177.54,177.5,0.03684574]
[1747919675667,0.04211132,177.54,177.51,5.6328]
[1747919676778,0.04211132,177.54,177.52,5.6326]
[1747919677570,0.04211132,177.54,177.53,5.6323]
[1747919681975,0.04211132,177.54,177.52,5.6326]
[1747919682375,0.04211132,177.54,177.5,2.05554574]
[1747919682570,5.6326,177.53,177.5,0.03684574]
[1747919682771,0.04211132,177.54,177.5,0.03684574]
[1747919683171,5.6326,177.53,177.5,0.03684574]
[1747919683373,0.04211132,177.54,177.5,0.03684574]
[1747919683578,5.6325,177.53,177.5,5.67014574]
[1747919683871,0.04211132,177.54,177.5,0.03684574]
[1747919685176,5.67421132,177.54,177.51,5.6328]
[1747919685976,5.67421132,177.54,177.52,5.6326]
[1747919686278,5.6324,177.53,177.5,0.03684574]
[1747919686474,0.04211132,177.54,177.5,0.03684574]
[1747919687076,0.04211132,177.54,177.51,5.6328]
[1747919687276,0.04211132,177.54,177.5,0.03684574]
[1747919687684,0.04211132,177.54,177.51,5.6329]
[1747919688573,5.67421132,177.54,177.51,5.6329]
[1747919688981,5.6324,177.53,177.51,5.6329]
[1747919689177,0.04211132,177.54,177.5,5.67004574]
[1747919689583,5.6324,177.53,177.5,5.67004574]
[1747919690581,5.6324,177.53,177.51,5.633]
[1747919690780,5.67421132,177.54,177.51,5.633]
[1747919691883,0.04211132,177.54,177.52,5.6324]
[1747919692076,0.04211132,177.54,177.5,0.03684574]
[1747919692982,0.04211132,177.54,177.51,5.6329]
[1747919693584,5.6324,177.53,177.5,5.67004574]
[1747919694080,5.6327,177.52,177.5,5.67004574]
[1747919694786,5.6324,177.53,177.5,5.67004574]
[1747919695185,5.6324,177.53,177.51,5.633]
[1747919696784,5.6324,177.53,177.5,5.67004574]
[1747919696987,5.6328,177.52,177.5,5.67004574]
[1747919697486,5.6328,177.52,177.5,0.03684574]
[1747919698486,0.04211132,177.54,177.5,0.03684574]
[1747919698487,5.633,177.51,177.5,0.03684574]
[1747919699686,124.10211132,177.54,177.5,0.03684574]
[1747919700390,0.04211132,177.54,177.5,0.03684574]
[1747919700887,0.04211132,177.54,177.53,5.6323]
[1747919702588,5.21578355,177.6,177.58,5.6306]
[1747919702990,5.21578355,177.6,177.51,125.9531]
[1747919703185,5.6307,177.59,177.56,5.6311]
[1747919703590,5.67074754,177.59,177.56,0.03984622]
[1747919704090,5.67074754,177.59,177.56,5.67114622]
[1747919704693,5.6308,177.58,177.56,0.03984622]
[1747919705387,5.67064754,177.59,177.56,5.67124622]
[1747919705595,0.04004754,177.59,177.56,5.67124622]
[1747919706202,0.04004754,177.59,177.56,0.03984622]
[1747919707091,5.6308,177.58,177.56,0.03984622]
[1747919707595,0.04004754,177.59,177.56,0.03984622]
[1747919707987,5.6311,177.57,177.56,0.03984622]
[1747919708487,0.04004754,177.59,177.56,0.03984622]
[1747919708687,5.67064754,177.59,177.56,5.67124622]
[1747919709189,5.6311,177.57,177.56,0.03984622]
[1747919709992,5.6308,177.58,177.56,0.03984622]
[1747919710494,0.04004754,177.59,177.56,0.03984622]
[1747919710992,0.04004754,177.59,177.57,5.6308]
[1747919711296,0.04004754,177.59,177.56,0.03984622]
[1747919711597,0.04004754,177.59,177.58,5.6308]
[1747919718301,0.04004754,177.59,177.56,0.03984622]
[1747919719000,5.6311,177.57,177.56,0.03984622]
[1747919723102,129.4511,177.57,177.56,0.03984622]
[1747919723305,5.6329,177.52,177.47,128.52213303]
[1747919723501,1.8935,177.56,177.47,128.52213303]
[1747919724297,0.03889881,177.53,177.5,0.04177567]
[1747919725003,5.6332,177.51,177.5,0.04177567]
[1747919726300,5.6327,177.52,177.5,0.04177567]
[1747919727705,5.67129881,177.53,177.5,5.67507567]
[1747919728304,0.03889881,177.53,177.51,5.633]
[1747919728505,0.03889881,177.53,177.5,0.04177567]
[1747919728704,0.03889881,177.53,177.52,5.6327]
[1747919731804,5.21578355,177.61,177.5,0.04177567]
[1747919732005,5.21578355,177.61,177.5,107.02]
[1747919732208,5.21578355,177.61,177.52,11.13364778]
[1747919732410,5.21578355,177.61,177.53,125.9188]
[1747919732610,5.21578355,177.61,177.6,5.6301]
[1747919734311,5.21578355,177.61,177.59,5.66686133]
[1747919734513,5.21578355,177.61,177.59,0.03646133]
[1747919734813,5.21578355,177.61,177.6,5.6301]
[1747919735109,0.04051184,177.62,177.6,5.6301]
[1747919735307,0.04051184,177.62,177.6,5.6299]
[1747919735609,0.04051184,177.62,177.59,0.03646133]
[1747919737611,0.04051184,177.62,177.61,5.6298]
[1747919738107,129.4677,177.68,177.65,5.6284]
[1747919738505,123.84,177.68,177.6,1.9525]
[1747919738709,5.6281,177.67,177.63,5.6291]
[1747919739213,5.66770954,177.67,177.63,5.66525948]
[1747919739714,0.03960954,177.67,177.64,5.6287]
[1747919739906,0.03960954,177.67,177.63,0.03615948]
[1747919741318,0.03960954,177.67,177.63,5.66535948]
[1747919741514,0.03960954,177.67,177.63,0.03615948]
[1747919742116,0.03960954,177.67,177.63,5.66515948]
[1747919742617,5.6287,177.65,177.63,0.03615948]
[1747919743320,5.6289,177.64,177.63,0.03615948]
[1747919744321,5.6285,177.66,177.63,0.03615948]
[1747919746427,5.6286,177.65,177.63,0.03615948]
[1747919747124,5.6283,177.66,177.63,5.66535948]
[1747919747328,0.03960954,177.67,177.63,0.03615948]
[1747919747728,5.6283,177.66,177.63,5.66515948]
[1747919748332,5.66760954,177.67,177.64,5.6288]
[1747919748724,0.03960954,177.67,177.63,0.03615948]
[1747919748920,5.6282,177.66,177.63,5.66505948]
[1747919750034,5.66760954,177.67,177.64,5.6287]
[1747919750334,0.03960954,177.67,177.63,0.03615948]
[1747919750734,5.66750954,177.67,177.64,5.6288]
[1747919751032,5.66750954,177.67,177.63,0.03615948]
[1747919751634,5.66750954,177.67,177.63,5.66515948]
[1747919751833,5.66750954,177.67,177.63,0.03615948]
[1747919752037,0.03960954,177.67,177.63,0.03615948]
[1747919752232,0.03960954,177.67,177.66,5.6282]
[1747919752935,0.03960954,177.67,177.63,123.61615948]
[1747919753137,5.66760954,177.67,177.63,123.61615948]
[1747919753639,5.6282,177.66,177.63,129.24515948]
[1747919755045,0.03960954,177.67,177.63,123.61615948]
[1747919756436,0.03960954,177.67,177.66,5.6282]
[1747919758242,0.03960954,177.67,177.63,123.61615948]
[1747919758442,0.03960954,177.67,177.63,0.03615948]
[1747919758646,5.6287,177.65,177.63,0.03615948]
[1747919758943,0.03960954,177.67,177.63,0.03615948]
[1747919759136,5.6289,177.64,177.63,0.03615948]
[1747919759344,4.02420954,177.67,177.59,5.6303]
[1747919759642,1.9766,177.66,177.55,616.58033303]
[1747919759941,5.63,177.61,177.58,5.6306]
[1747919760140,5.63,177.61,177.55,616.58033303]
[1747919760344,0.04185494,177.6,177.56,0.0382826]
[1747919760737,0.04185494,177.6,177.59,5.6304]
[1747919760938,5.494e-05,177.6,177.59,5.6304]
[1747919761141,5.494e-05,177.6,177.59,11.2704]
[1747919761439,5.494e-05,177.6,177.59,5.6304]
[1747919771447,5.494e-05,177.6,177.56,0.0382826]
[1747919771848,5.494e-05,177.6,177.57,5.6308]
[1747919772948,5.63025494,177.6,177.57,5.6308]
[1747919773152,5.494e-05,177.6,177.56,0.0382826]
[1747919774250,5.494e-05,177.6,177.56,5.6695826]
[1747919774557,5.494e-05,177.6,177.56,0.0382826]
[1747919775057,5.6306,177.59,177.56,5.6694826]
[1747919777463,5.6311,177.58,177.56,0.0382826]
[1747919777658,5.494e-05,177.6,177.56,0.0382826]
[1747919778359,5.6311,177.57,177.56,0.0382826]
[1747919778561,123.38005494,177.6,177.56,0.0382826]
[1747919779057,5.631,177.58,177.56,0.0382826]
[1747919779555,5.6311,177.57,177.56,0.0382826]
[1747919779860,123.38005494,177.6,177.56,0.0382826]
[1747919780561,123.38005494,177.6,177.58,5.6305]
[1747919781057,5.494e-05,177.6,177.58,5.6305]
[1747919781656,5.494e-05,177.6,177.56,0.0382826]
[1747919784263,5.494e-05,177.6,177.59,5.6304]
[1747919793773,5.494e-05,177.6,177.56,0.0382826]
[1747919795680,5.6311,177.57,177.56,0.0382826]
[1747919799177,5.6309,177.58,177.56,0.0382826]
[1747919800585,5.63045494,177.6,177.56,0.0382826]
[1747919800984,5.494e-05,177.6,177.56,0.0382826]
[1747919801690,5.6306,177.59,177.56,0.0382826]
[1747919802489,5.6306,177.59,177.56,5.6694826]
[1747919803690,5.6309,177.58,177.56,0.0382826]
[1747919803891,5.494e-05,177.6,177.56,0.0382826]
[1747919804788,5.6311,177.57,177.56,0.0382826]
[1747919811088,5.6309,177.58,177.56,0.0382826]
[1747919811287,5.494e-05,177.6,177.56,0.0382826]
[1747919811489,5.6311,177.57,177.56,0.0382826]
[1747919821491,5.6309,177.58,177.56,0.0382826]
[1747919821788,5.494e-05,177.6,177.56,5.6694826]
[1747919821993,5.6306,177.59,177.56,5.6694826]
[1747919822395,5.494e-05,177.6,177.56,0.0382826]
[1747919822689,5.6309,177.58,177.56,0.0382826]
[1747919823900,5.6305,177.59,177.56,5.6695826]
[1747919824098,5.494e-05,177.6,177.56,0.0382826]
[1747919824702,5.6309,177.58,177.56,0.0382826]
[1747919825495,5.6311,177.57,177.56,0.0382826]
[1747919825695,5.494e-05,177.6,177.56,0.0382826]
[1747919826097,5.6311,177.57,177.56,0.0382826]
[1747919826490,5.494e-05,177.6,177.56,0.0382826]
[1747919826691,5.6309,177.58,177.56,0.0382826]
[1747919826991,5.494e-05,177.6,177.56,0.0382826]
[1747919827499,5.6305,177.59,177.56,5.6693826]
[1747919827898,5.494e-05,177.6,177.56,0.0382826]
[1747919828199,5.6307,177.59,177.56,0.0382826]
[1747919829094,5.6307,177.59,177.56,5.6695826]
[1747919829300,5.6307,177.59,177.56,0.0382826]
[1747919830401,5.6308,177.58,177.56,0.0382826]
[1747919833104,5.6305,177.59,177.56,0.0382826]
[1747919833605,5.6305,177.59,177.56,5.6695826]
[1747919833905,5.6305,177.59,177.56,0.0382826]
[1747919834507,5.6305,177.59,177.56,5.6695826]
[1747919836410,5.6311,177.57,177.56,0.0382826]
[1747919836807,122.96,177.58,177.5,4.70213303]
[1747919837009,5.6326,177.52,177.5,4.70213303]
[1747919837511,134.09364778,177.58,177.5,4.70213303]
[1747919837908,0.03959899,177.56,177.52,0.0386477]
[1747919839613,5.25538254,177.56,177.52,0.0386477]
[1747919840110,5.6323,177.53,177.52,0.0386477]
[1747919840310,5.25538254,177.56,177.52,0.0386477]
[1747919841009,10.88698254,177.56,177.53,5.6323]
[1747919841705,5.25538254,177.56,177.52,0.0386477]
[1747919842411,0.03959899,177.56,177.55,5.6317]
[1747919853013,0.03959899,177.56,177.53,5.6323]
[1747919853214,0.03959899,177.56,177.52,123.0186477]
[1747919853612,5.67099899,177.56,177.53,5.6323]
[1747919853813,5.67099899,177.56,177.52,123.0186477]
[1747919854116,0.03959899,177.56,177.52,123.0186477]
[1747919857214,5.67099899,177.56,177.53,5.6323]